[Event "EYTCC Open U18 2018"]
[Site "Bad Blankeburg"]
[Date "2018.07.12"]
[Round "1"]
[White "Gumularz, Szymon"]
[Black "Subelj, Jan"]
[Result "*"]
[ECO "B41"]
[WhiteElo "2461"]
[BlackElo "2327"]
[Annotator "ChessBase"]
[PlyCount "54"]
[EventDate "2018.07.12"]
[EventType "swiss"]
[EventCountry "GER"]
[SourceTitle "playchess.com"]
[Source "ChessBase"]
[SourceQuality "1"]
[TimeControl "40/5400+30:1800+30"]

1. e4 {[%emt 0:00:00]} c5 {[%emt 0:00:00]} 2. Nf3 {[%emt 0:00:00]} e6 {[%emt 0:00:22]} 3. d4 {[%emt 0:00:00]} cxd4 {[%emt 0:00:08]} 4. Nxd4 {[%emt 0:00:00]} a6 {[%emt 0:00:40]} 5. c4 {[%emt 0:00:01]} Nf6 {[%emt 0:00:52]} 6. Nc3 {[%emt 0:00:10]} Bb4 {[%emt 0:01:06]} 7. Qd3 {[%emt 0:00:11]} Nc6 {[%emt 0:05:42]} 8. Nxc6 {[%emt 0:00:07]} dxc6 {[%emt 0:00:08]} 9. Qxd8+ {[%emt 0:00:04]} Kxd8 {[%emt 0:00:08]} 10. e5 {[%emt 0:00:17]} Nd7 {[%emt 0:00:22]} 11. Bf4 {[%emt 0:00:06]} f5 {[%emt 0:01:46]} 12. O-O-O {[%emt 0:00:16]} Be7 {[%emt 0:03:45]} 13. h4 {[%emt 0:02:28]} Kc7 {[%emt 0:03:06]} 14. Ne2 {[%emt 0:10:14]} b5 {[%emt 0:05:26]} 15. Kb1 {[%emt 0:18:21]} bxc4 {[%emt 0:03:58]} 16. Rc1 {[%emt 0:04:01]} Nb6 {[%emt 0:01:48]} 17. Be3 {[%emt 0:06:02]} Rb8 {[%emt 0:09:23]} 18. Nf4 {[%emt 0:03:07]} Na4 {[%emt 0:07:12]} 19. Rc2 {[%emt 0:01:10]} Ba3 {[%emt 0:04:23]} 20. Bxc4 {[%emt 0:04:03]} Bxb2 {[%emt 0:02:29]} 21. Bb3 {[%emt 0:00:13]} Bxe5 {[%emt 0:01:44]} 22. Rhc1 {[%emt 0:02:43]} Bd7 {[%emt 0:03:43]} 23. Rc4 {[%emt 0:00:30]} Nb6 {[%emt 0:07:04]} 24. Nxe6+ {[%emt 0:01:01]} Kd6 {[%emt 0:02:40]} 25. Bxb6 {[%emt 0:06:30]} Rxb6 {[%emt 0:02:15]} 26. Rd1+ {[%emt 0:11:05]} Ke7 {[%emt 0:00:30]} 27. Ng5 {[%emt 0:02:18]} f4 {[%emt 0:10:36]} *

[Event "EYTCC Open U18 2018"]
[Site "Bad Blankeburg"]
[Date "2018.07.12"]
[Round "1"]
[White "Engel, Luis"]
[Black "Kesgin, Halit Kaan"]
[Result "*"]
[ECO "B11"]
[WhiteElo "2459"]
[BlackElo "2049"]
[Annotator "ChessBase"]
[PlyCount "47"]
[EventDate "2018.07.12"]
[EventType "swiss"]
[EventCountry "GER"]
[SourceTitle "playchess.com"]
[Source "ChessBase"]
[SourceQuality "1"]
[TimeControl "40/5400+30:1800+30"]

1. e4 {[%emt 0:00:00]} c6 {[%emt 0:00:00]} 2. Nc3 {[%emt 0:00:06]} d5 {[%emt 0:00:00]} 3. Nf3 {[%emt 0:00:15]} Bg4 {[%emt 0:00:00]} 4. h3 {[%emt 0:00:09]} Bh5 {[%emt 0:01:48]} 5. exd5 {[%emt 0:07:47]} cxd5 {[%emt 0:00:31]} 6. g4 {[%emt 0:02:32]} Bg6 {[%emt 0:00:05]} 7. Ne5 {[%emt 0:00:09]} Nc6 {[%emt 0:00:06]} 8. Bb5 {[%emt 0:00:14]} Rc8 {[%emt 0:00:03]} 9. h4 {[%emt 0:10:35]} f6 {[%emt 0:02:59]} 10. Nxg6 {[%emt 0:01:49]} hxg6 {[%emt 0:00:01]} 11. d4 {[%emt 0:08:57]} e6 {[%emt 0:01:47]} 12. Be3 {[%emt 0:02:57]} Bb4 {[%emt 0:11:55]} 13. Qd3 {[%emt 0:16:40]} Nge7 {[%emt 0:01:10]} 14. Bd2 {[%emt 0:05:16]} Qa5 {[%emt 0:16:07]} 15. a3 {[%emt 0:08:59]} a6 {[%emt 0:02:01]} 16. Bxc6+ {[%emt 0:00:24]} Rxc6 {[%emt 0:01:03]} 17. Ne2 {[%emt 0:08:21]} Bxd2+ {[%emt 0:02:14]} 18. Qxd2 {[%emt 0:00:10]} Qxd2+ {[%emt 0:03:53]} 19. Kxd2 {[%emt 0:00:07]} Kf7 {[%emt 0:01:07]} 20. c3 {[%emt 0:04:59]} Nc8 {[%emt 0:05:27]} 21. Nf4 {[%emt 0:00:45]} Nd6 {[%emt 0:02:49]} 22. Nd3 {[%emt 0:01:25]} a5 {[%emt 0:08:42]} 23. a4 {[%emt 0:04:08]} b6 {[%emt 0:03:48]} 24. Kc2 {[%emt 0:01:55]} *

[Event "EYTCC Open U18 2018"]
[Site "Bad Blankeburg"]
[Date "2018.07.12"]
[Round "1"]
[White "Gavrilescu, David"]
[Black "Vykouk, Jan"]
[Result "*"]
[ECO "A50"]
[WhiteElo "2451"]
[BlackElo "2419"]
[Annotator "ChessBase"]
[PlyCount "44"]
[EventDate "2018.07.12"]
[EventType "swiss"]
[EventCountry "GER"]
[SourceTitle "playchess.com"]
[Source "ChessBase"]
[SourceQuality "1"]
[TimeControl "40/5400+30:1800+30"]

1. d4 {[%emt 0:00:00]} Nf6 {[%emt 0:00:00]} 2. c4 {[%emt 0:00:00]} b6 {[%emt 0:00:00]} 3. Nc3 {[%emt 0:00:24]} Bb7 {[%emt 0:00:00]} 4. Qc2 {[%emt 0:02:53]} d5 {[%emt 0:01:05]} 5. cxd5 {[%emt 0:00:31]} Nxd5 {[%emt 0:00:08]} 6. Nf3 {[%emt 0:01:06]} Nxc3 {[%emt 0:10:10]} 7. bxc3 {[%emt 0:12:51]} Nd7 {[%emt 0:00:25]} 8. e4 {[%emt 0:08:21]} g6 {[%emt 0:03:23]} 9. h4 {[%emt 0:08:26]} h6 {[%emt 0:01:19]} 10. e5 {[%emt 0:09:43]} e6 {[%emt 0:03:17]} 11. Bd3 {[%emt 0:00:30]} c5 {[%emt 0:04:56]} 12. Rh3 {[%emt 0:18:27]} Qc7 {[%emt 0:04:56]} 13. Qb2 {[%emt 0:03:19]} c4 {[%emt 0:04:12]} 14. Bc2 {[%emt 0:01:37]} Bd5 {[%emt 0:04:39]} 15. a4 {[%emt 0:01:12]} a6 {[%emt 0:01:16]} 16. Qa2 {[%emt 0:02:56]} Qc6 {[%emt 0:01:34]} 17. Ba3 {[%emt 0:01:45]} O-O-O {[%emt 0:01:02]} 18. Rg3 {[%emt 0:03:15]} Kc7 {[%emt 0:05:19]} 19. Kf1 {[%emt 0:01:41]} Bxa3 {[%emt 0:19:20]} 20. Qxa3 {[%emt 0:00:06]} Rdg8 {[%emt 0:00:13]} 21. Kg1 {[%emt 0:05:58]} Rg7 {[%emt 0:00:48]} 22. Re1 {[%emt 0:02:18]} Rhg8 {[%emt 0:00:13]} *

[Event "EYTCC Open U18 2018"]
[Site "Bad Blankeburg"]
[Date "2018.07.12"]
[Round "1"]
[White "Bjerre, Jonas Buhl"]
[Black "Kozak, Adam"]
[Result "*"]
[ECO "C54"]
[WhiteElo "2436"]
[BlackElo "2446"]
[Annotator "NA"]
[PlyCount "42"]
[EventDate "2018.07.12"]
[EventType "swiss"]
[EventCountry "GER"]
[SourceTitle "playchess.com"]
[Source "ChessBase"]
[SourceQuality "1"]
[TimeControl "40/5400+30:1800+30"]

1. e4 {[%emt 0:00:00]} e5 {[%emt 0:00:00]} 2. Nf3 {[%emt 0:00:00]} Nc6 {[%emt 0:00:00]} 3. Bc4 {[%emt 0:00:00]} Bc5 {[%emt 0:00:33]} 4. c3 {[%emt 0:00:00]} Nf6 {[%emt 0:00:07]} 5. d3 {[%emt 0:00:00]} a6 {[%emt 0:08:00]} 6. Bb3 {[%emt 0:00:04]} d6 {[%emt 0:00:21]} 7. Nbd2 {[%emt 0:00:24]} O-O {[%emt 0:00:23]} 8. O-O {[%emt 0:00:10]} Ba7 {[%emt 0:00:11]} 9. h3 {[%emt 0:00:09]} Kh8 {[%emt 0:00:49]} 10. Nc4 {[%emt 0:06:10]} Be6 {[%emt 0:25:46]} 11. Re1 {[%emt 0:11:48]} b5 $11 {[%emt 0:06:33]} 12. Ne3 {[%emt 0:00:21]} d5 {[%emt 0:07:53]} 13. exd5 {[%emt 0:06:28]} Nxd5 {[%emt 0:03:59]} 14. Ng4 {[%emt 0:19:42]} f6 {[%emt 0:04:31]} 15. d4 {[%emt 0:01:57]} Bxg4 {[%emt 0:00:45]} 16. hxg4 {[%emt 0:00:05]} exd4 {[%emt 0:00:10]} 17. cxd4 {[%emt 0:05:08]} Qd7 {[%emt 0:02:36]} 18. a4 {[%emt 0:01:20]} Rad8 {[%emt 0:03:00]} 19. axb5 {[%emt 0:05:53]} axb5 {[%emt 0:00:11]} 20. g5 {[%emt 0:00:56]} Qg4 {[%emt 0:05:23]} 21. gxf6 {[%emt 0:10:45]} gxf6 {[%emt 0:02:12]} *

[Event "EYTCC Open U18 2018"]
[Site "Bad Blankeburg"]
[Date "2018.07.12"]
[Round "1"]
[White "Horvath, Dominik"]
[Black "Jakab, Bela"]
[Result "*"]
[ECO "B56"]
[WhiteElo "2429"]
[BlackElo "2292"]
[Annotator "NA"]
[PlyCount "44"]
[EventDate "2018.07.12"]
[EventType "swiss"]
[EventCountry "GER"]
[SourceTitle "playchess.com"]
[Source "ChessBase"]
[SourceQuality "1"]
[TimeControl "40/5400+30:1800+30"]

1. e4 {[%emt 0:00:00]} c5 {[%emt 0:00:00]} 2. Nf3 {[%emt 0:00:00]} d6 {[%emt 0:00:00]} 3. d4 {[%emt 0:00:00]} cxd4 {[%emt 0:00:00]} 4. Nxd4 {[%emt 0:00:00]} Nf6 {[%emt 0:00:09]} 5. Nc3 {[%emt 0:00:04]} Nc6 {[%emt 0:00:18]} 6. g3 {[%emt 0:03:47]} e5 {[%emt 0:01:20]} 7. Nde2 {[%emt 0:00:10]} Bg4 {[%emt 0:00:20]} 8. Bg2 {[%emt 0:15:12]} Nd4 {[%emt 0:01:04]} 9. Qd3 {[%emt 0:01:04]} Nxe2 {[%emt 0:00:39]} 10. Nxe2 {[%emt 0:00:05]} Be7 {[%emt 0:00:26]} 11. c4 {[%emt 0:03:22]} O-O {[%emt 0:00:33]} 12. Nc3 {[%emt 0:02:28]} Nd7 {[%emt 0:01:16]} 13. Be3 {[%emt 0:04:11]} Bg5 {[%emt 0:20:44]} 14. Qxd6 $11 {[%emt 0:14:16]} ({White should try} 14. Bxg5 $16 Qxg5 15. Qxd6) 14... Bxe3 {[%emt 0:03:23]} 15. fxe3 {[%emt 0:00:11]} Qg5 {[%emt 0:05:55]} 16. Qd2 {[%emt 0:04:37]} Rad8 {[%emt 0:06:54]} 17. Nd5 {[%emt 0:02:48]} Bh5 {[%emt 0:09:30]} 18. O-O {[%emt 0:02:25]} Bg6 {[%emt 0:02:35]} 19. Rad1 {[%emt 0:12:18]} Kh8 {[%emt 0:03:06]} 20. Qf2 {[%emt 0:04:18]} Nc5 {[%emt 0:01:50]} 21. Qc2 {[%emt 0:07:00]} Qg4 {[%emt 0:08:46]} 22. Nc3 {[%emt 0:00:36]} Rc8 {[%emt 0:04:31]} *

[Event "EYTCC Open U18 2018"]
[Site "Bad Blankeburg"]
[Date "2018.07.12"]
[Round "1"]
[White "Martin, Julian"]
[Black "Urban, Konstantin"]
[Result "*"]
[ECO "D37"]
[WhiteElo "2415"]
[BlackElo "2325"]
[Annotator "NA"]
[PlyCount "50"]
[EventDate "2018.07.12"]
[EventType "swiss"]
[EventCountry "GER"]
[SourceTitle "playchess.com"]
[Source "ChessBase"]
[SourceQuality "1"]
[TimeControl "40/5400+30:1800+30"]

1. Nf3 {[%emt 0:00:00]} Nf6 {[%emt 0:00:00]} 2. c4 {[%emt 0:00:00]} e6 {[%emt 0:00:00]} 3. Nc3 {[%emt 0:00:00]} d5 {[%emt 0:00:08]} 4. d4 {[%emt 0:00:02]} Be7 {[%emt 0:00:08]} 5. Bf4 {[%emt 0:00:33]} O-O {[%emt 0:00:31]} 6. e3 {[%emt 0:00:08]} c6 {[%emt 0:01:34]} 7. Bd3 {[%emt 0:02:21]} Nbd7 {[%emt 0:00:56]} 8. h3 {[%emt 0:11:30]} dxc4 {[%emt 0:10:21]} 9. Bxc4 {[%emt 0:00:13]} b5 {[%emt 0:00:14]} 10. Be2 {[%emt 0:03:58]} b4 {[%emt 0:09:42]} 11. Na4 {[%emt 0:00:42]} c5 {[%emt 0:00:31]} 12. O-O {[%emt 0:05:02]} Bb7 {[%emt 0:02:27]} 13. Rc1 {[%emt 0:04:21]} Rc8 $11 {[%emt 0:03:05]} 14. Ne5 {[%emt 0:19:38]} cxd4 {[%emt 0:04:25]} 15. Qxd4 {[%emt 0:02:26]} Nxe5 {[%emt 0:01:13]} 16. Qxd8 {[%emt 0:04:34]} Rfxd8 {[%emt 0:01:43]} 17. Bxe5 {[%emt 0:00:47]} Rd2 {[%emt 0:19:26]} 18. Bf3 {[%emt 0:01:38]} Rxc1 {[%emt 0:02:20]} 19. Rxc1 {[%emt 0:00:07]} Bxf3 {[%emt 0:00:08]} 20. gxf3 {[%emt 0:00:56]} Kf8 {[%emt 0:06:05]} 21. Bd4 {[%emt 0:01:35]} a5 {[%emt 0:05:59]} 22. Kf1 {[%emt 0:03:07]} b3 {[%emt 0:06:32]} 23. axb3 {[%emt 0:01:36]} Ne8 {[%emt 0:00:34]} 24. Bc3 {[%emt 0:07:21]} Rd5 {[%emt 0:01:21]} 25. Nb6 {[%emt 0:01:44]} Rh5 {[%emt 0:01:44]} *

[Event "EYTCC Open U18 2018"]
[Site "Bad Blankeburg"]
[Date "2018.07.12"]
[Round "1"]
[White "Zarubitski, Viachaslau"]
[Black "Gorshtein, Ido"]
[Result "*"]
[ECO "B36"]
[WhiteElo "2412"]
[BlackElo "2382"]
[Annotator "NA"]
[PlyCount "39"]
[EventDate "2018.07.12"]
[EventType "swiss"]
[EventCountry "GER"]
[SourceTitle "playchess.com"]
[Source "ChessBase"]
[SourceQuality "1"]
[TimeControl "40/5400+30:1800+30"]

1. e4 {[%emt 0:00:00]} c5 {[%emt 0:00:00]} 2. Nf3 {[%emt 0:00:00]} Nc6 {[%emt 0:00:00]} 3. d4 {[%emt 0:00:00]} cxd4 {[%emt 0:00:00]} 4. Nxd4 {[%emt 0:00:00]} g6 {[%emt 0:00:07]} 5. c4 {[%emt 0:00:02]} Nf6 {[%emt 0:00:14]} 6. Nc3 {[%emt 0:00:41]} Nxd4 {[%emt 0:00:07]} 7. Qxd4 {[%emt 0:00:06]} d6 {[%emt 0:00:06]} 8. f3 {[%emt 0:02:10]} Bg7 {[%emt 0:00:53]} 9. Be3 {[%emt 0:00:04]} O-O {[%emt 0:00:56]} 10. Qd2 {[%emt 0:00:08]} Be6 {[%emt 0:04:10]} 11. Rc1 {[%emt 0:02:58]} Qa5 {[%emt 0:20:40]} 12. Bd3 {[%emt 0:07:32]} Rfc8 {[%emt 0:01:51]} 13. b3 {[%emt 0:00:13]} Nd7 {[%emt 0:04:22]} 14. O-O {[%emt 0:16:16]} a6 {[%emt 0:05:57]} 15. f4 {[%emt 0:10:08]} f5 {[%emt 0:22:55]} 16. exf5 {[%emt 0:13:03]} Bxf5 {[%emt 0:02:32]} 17. Bxf5 {[%emt 0:00:36]} gxf5 {[%emt 0:01:00]} 18. Rf3 {[%emt 0:08:13]} Bxc3 {[%emt 0:10:06]} 19. Rxc3 {[%emt 0:04:24]} Nf6 {[%emt 0:00:07]} 20. Qd3 {[%emt 0:13:57]} *

[Event "EYTCC Open U18 2018"]
[Site "Bad Blankeburg"]
[Date "2018.07.12"]
[Round "1"]
[White "Badelka, Olga"]
[Black "Parkhov, Yair"]
[Result "1-0"]
[ECO "D43"]
[WhiteElo "2407"]
[BlackElo "2364"]
[Annotator "NA"]
[PlyCount "97"]
[EventDate "2018.07.12"]
[EventType "swiss"]
[EventCountry "GER"]
[SourceTitle "playchess.com"]
[Source "ChessBase"]
[SourceQuality "1"]
[TimeControl "40/5400+30:1800+30"]

1. c4 {[%emt 0:00:00]} e6 {[%emt 0:00:00]} 2. Nc3 {[%emt 0:00:00]} d5 {[%emt 0:00:00]} 3. d4 {[%emt 0:00:01]} c6 {[%emt 0:00:00]} 4. Nf3 {[%emt 0:00:09]} Nf6 {[%emt 0:00:06]} 5. Bg5 {[%emt 0:00:42]} h6 {[%emt 0:01:24]} 6. Bh4 {[%emt 0:02:47]} dxc4 {[%emt 0:01:05]} 7. e4 {[%emt 0:00:13]} g5 {[%emt 0:00:07]} 8. Bg3 {[%emt 0:11:32]} b5 {[%emt 0:00:07]} 9. Be2 {[%emt 0:01:49]} Bb7 {[%emt 0:00:25]} 10. Ne5 {[%emt 0:02:33]} Nbd7 {[%emt 0:01:39]} 11. O-O {[%emt 0:00:52]} h5 {[%emt 0:00:21]} 12. Nxd7 {[%emt 0:07:11]} Qxd7 {[%emt 0:00:12]} 13. Be5 {[%emt 0:00:20]} Rh6 {[%emt 0:00:05]} 14. f4 {[%emt 0:04:39]} g4 {[%emt 0:00:09]} 15. Qc2 {[%emt 0:09:59]} b4 {[%emt 0:20:17]} 16. Na4 {[%emt 0:03:02]} c5 {[%emt 0:01:03]} 17. Nxc5 {[%emt 0:03:15]} Bxc5 {[%emt 0:00:41]} 18. dxc5 {[%emt 0:00:02]} Nxe4 {[%emt 0:12:07]} 19. Bxc4 {[%emt 0:03:28]} Qc6 {[%emt 0:05:34]} 20. Rfd1 {[%emt 0:03:31]} g3 {[%emt 0:17:16]} 21. Bb3 {[%emt 0:15:00]} Qxc5+ {[%emt 0:05:27]} 22. Qxc5 {[%emt 0:03:10]} gxh2+ {[%emt 0:00:49]} 23. Kxh2 {[%emt 0:00:02]} Nxc5 {[%emt 0:00:12]} 24. Bc4 {[%emt 0:00:27]} a6 {[%emt 0:08:19]} 25. Rac1 {[%emt 0:05:50]} Rc8 {[%emt 0:06:01]} 26. Be2 {[%emt 0:01:43]} Ne4 {[%emt 0:08:50]} 27. Rxc8+ {[%emt 0:02:59]} Bxc8 {[%emt 0:00:05]} 28. Bc7 {[%emt 0:04:23]} Bd7 {[%emt 0:02:44]} 29. Rd4 {[%emt 0:01:03]} b3 {[%emt 0:03:24]} 30. axb3 {[%emt 0:01:29]} Nf6 {[%emt 0:01:12]} 31. Rb4 {[%emt 0:06:22]} Ke7 {[%emt 0:01:05]} 32. Rb8 {[%emt 0:00:33]} Bb5 {[%emt 0:02:42]} 33. Bf3 {[%emt 0:01:44]} Kd7 {[%emt 0:01:20]} 34. Ba5 {[%emt 0:00:12]} Nd5 {[%emt 0:01:37]} 35. Rb7+ {[%emt 0:02:54]} Ke8 {[%emt 0:00:07]} 36. f5 {[%emt 0:00:28]} h4 {[%emt 0:00:14]} 37. fxe6 {[%emt 0:01:48]} fxe6 {[%emt 0:00:09]} 38. Bd2 {[%emt 0:00:24]} Rf6 {[%emt 0:00:21]} 39. Bg5 {[%emt 0:00:57]} Rxf3 {[%emt 0:00:47]} 40. gxf3 {[%emt 0:00:17]} Bc6 {[%emt 0:01:16]} 41. Ra7 {[%emt 0:30:56]} Nb4 {[%emt 0:02:42]} 42. Re7+ {[%emt 0:00:00]} Kf8 {[%emt 0:00:08]} 43. Rxe6 {[%emt 0:00:00]} Bd5 {[%emt 0:02:25]} 44. Rf6+ {[%emt 0:00:00]} Kg7 {[%emt 0:00:16]} 45. Bxh4 {[%emt 0:00:00]} Nc6 {[%emt 0:00:45]} 46. Kg3 {[%emt 0:00:00]} a5 {[%emt 0:00:27]} 47. Rd6 {[%emt 0:00:00]} Nb4 {[%emt 0:00:03]} 48. Bf6+ {[%emt 0:00:00]} Kf7 {[%emt 0:00:08]} 49. Bc3 {[%emt 0:00:00]} 1-0

[Event "EYTCC Open U18 2018"]
[Site "Bad Blankeburg"]
[Date "2018.07.12"]
[Round "1"]
[White "Morgunov, Marc"]
[Black "Haring, Filip"]
[Result "1/2-1/2"]
[ECO "B41"]
[WhiteElo "2362"]
[BlackElo "2310"]
[Annotator "NA"]
[PlyCount "83"]
[EventDate "2018.07.12"]
[EventType "swiss"]
[EventCountry "GER"]
[SourceTitle "playchess.com"]
[Source "ChessBase"]
[SourceQuality "1"]
[TimeControl "40/5400+30:1800+30"]

1. e4 {[%emt 0:00:00]} c5 {[%emt 0:00:00]} 2. Nf3 {[%emt 0:00:00]} e6 {[%emt 0:00:22]} 3. d4 {[%emt 0:00:00]} cxd4 {[%emt 0:00:08]} 4. Nxd4 {[%emt 0:00:00]} a6 {[%emt 0:00:40]} 5. c4 {[%emt 0:00:01]} Nf6 {[%emt 0:00:52]} 6. Nc3 {[%emt 0:00:10]} Bb4 {[%emt 0:01:06]} 7. Qd3 {[%emt 0:00:11]} Nc6 {[%emt 0:05:42]} 8. Nxc6 {[%emt 0:00:07]} dxc6 {[%emt 0:00:08]} 9. Qxd8+ {[%emt 0:00:04]} Kxd8 {[%emt 0:00:08]} 10. e5 {[%emt 0:00:17]} Nd7 {[%emt 0:00:22]} 11. Bf4 {[%emt 0:00:06]} f5 {[%emt 0:01:46]} 12. O-O-O {[%emt 0:00:16]} Be7 {[%emt 0:03:45]} 13. h4 {[%emt 0:02:28]} Kc7 {[%emt 0:03:06]} 14. Ne2 {[%emt 0:10:14]} b5 {[%emt 0:05:26]} 15. Kb1 {[%emt 0:18:21]} bxc4 {[%emt 0:03:58]} 16. Rc1 {[%emt 0:04:01]} Nb6 {[%emt 0:01:48]} 17. Be3 {[%emt 0:06:02]} Rb8 {[%emt 0:09:23]} 18. Nf4 {[%emt 0:03:07]} Na4 {[%emt 0:07:12]} 19. Rc2 {[%emt 0:01:10]} Ba3 {[%emt 0:04:23]} 20. Bxc4 {[%emt 0:04:03]} Bxb2 {[%emt 0:02:29]} 21. Bb3 {[%emt 0:00:13]} Bxe5 {[%emt 0:01:44]} 22. Rhc1 {[%emt 0:02:43]} Bd7 {[%emt 0:03:43]} 23. Rc4 {[%emt 0:00:30]} Nb6 {[%emt 0:07:04]} 24. Nxe6+ {[%emt 0:01:01]} Kd6 {[%emt 0:02:40]} 25. Bxb6 {[%emt 0:06:30]} Rxb6 {[%emt 0:02:15]} 26. Rd1+ {[%emt 0:11:05]} Ke7 {[%emt 0:00:30]} 27. Ng5 {[%emt 0:02:18]} f4 {[%emt 0:10:36]} 28. Re1 {[%emt 0:09:47]} Rb5 {[%emt 0:01:19]} 29. Rxf4 {[%emt 0:01:57]} Rf8 {[%emt 0:04:02]} 30. Rxf8 {[%emt 0:01:12]} Kxf8 {[%emt 0:00:06]} 31. Nxh7+ {[%emt 0:00:03]} Ke7 {[%emt 0:00:07]} 32. f4 {[%emt 0:00:04]} Bf5+ {[%emt 0:00:07]} 33. Kc1 {[%emt 0:00:06]} Bxh7 {[%emt 0:01:23]} 34. Rxe5+ {[%emt 0:00:14]} Rxe5 {[%emt 0:04:12]} 35. fxe5 {[%emt 0:00:08]} Be4 {[%emt 0:00:48]} 36. Kd2 {[%emt 0:02:32]} Bxg2 {[%emt 0:00:19]} 37. Kc3 {[%emt 0:00:09]} c5 {[%emt 0:02:02]} 38. a3 {[%emt 0:04:37]} Bf1 {[%emt 0:02:30]} 39. Bd5 {[%emt 0:03:59]} Bb5 {[%emt 0:02:08]} 40. Bb3 {[%emt 0:01:14]} Bd7 {[%emt 0:03:10]} 41. Bd5 {[%emt 0:30:46]} Bb5 {[%emt 0:30:32]} 42. Bb3 {[%emt 0:00:14]} 1/2-1/2

[Event "EYTCC Open U18 2018"]
[Site "Bad Blankeburg"]
[Date "2018.07.12"]
[Round "1"]
[White "Morgunov, Marc"]
[Black "Haring, Filip"]
[Result "*"]
[ECO "D43"]
[WhiteElo "2362"]
[BlackElo "2310"]
[Annotator "NA"]
[PlyCount "50"]
[EventDate "2018.07.12"]
[EventType "swiss"]
[EventCountry "GER"]
[SourceTitle "playchess.com"]
[Source "ChessBase"]
[SourceQuality "1"]
[TimeControl "40/5400+30:1800+30"]

1. c4 {[%emt 0:00:00]} e6 {[%emt 0:00:00]} 2. Nc3 {[%emt 0:00:00]} d5 {[%emt 0:00:00]} 3. d4 {[%emt 0:00:01]} c6 {[%emt 0:00:00]} 4. Nf3 {[%emt 0:00:09]} Nf6 {[%emt 0:00:06]} 5. Bg5 {[%emt 0:00:42]} h6 {[%emt 0:01:24]} 6. Bh4 {[%emt 0:02:47]} dxc4 {[%emt 0:01:05]} 7. e4 {[%emt 0:00:13]} g5 {[%emt 0:00:07]} 8. Bg3 {[%emt 0:11:32]} b5 {[%emt 0:00:07]} 9. Be2 {[%emt 0:01:49]} Bb7 {[%emt 0:00:25]} 10. Ne5 {[%emt 0:02:33]} Nbd7 {[%emt 0:01:39]} 11. O-O {[%emt 0:00:52]} h5 {[%emt 0:00:21]} 12. Nxd7 {[%emt 0:07:11]} Qxd7 {[%emt 0:00:12]} 13. Be5 {[%emt 0:00:20]} Rh6 {[%emt 0:00:05]} 14. f4 {[%emt 0:04:39]} g4 {[%emt 0:00:09]} 15. Qc2 {[%emt 0:09:59]} b4 {[%emt 0:20:17]} 16. Na4 {[%emt 0:03:02]} c5 {[%emt 0:01:03]} 17. Nxc5 {[%emt 0:03:15]} Bxc5 {[%emt 0:00:41]} 18. dxc5 {[%emt 0:00:02]} Nxe4 {[%emt 0:12:07]} 19. Bxc4 {[%emt 0:03:28]} Qc6 {[%emt 0:05:34]} 20. Rfd1 {[%emt 0:03:31]} g3 {[%emt 0:17:16]} 21. Bb3 {[%emt 0:15:00]} Qxc5+ {[%emt 0:05:27]} 22. Qxc5 {[%emt 0:03:10]} gxh2+ {[%emt 0:00:49]} 23. Kxh2 {[%emt 0:00:02]} Nxc5 {[%emt 0:00:12]} 24. Bc4 {[%emt 0:00:27]} a6 {[%emt 0:08:19]} 25. Rac1 {[%emt 0:05:50]} Rc8 {[%emt 0:06:01]} *

[Event "EYTCC Open U18 2018"]
[Site "Bad Blankeburg"]
[Date "2018.07.12"]
[Round "1"]
[White "Buckels, Valentin"]
[Black "Keymer, Vincent"]
[Result "*"]
[ECO "A13"]
[WhiteElo "2353"]
[BlackElo "2466"]
[Annotator "ChessBase"]
[PlyCount "39"]
[EventDate "2018.07.12"]
[EventType "swiss"]
[EventCountry "GER"]
[SourceTitle "playchess.com"]
[Source "ChessBase"]
[SourceQuality "1"]
[TimeControl "40/5400+30:1800+30"]

1. Nf3 {[%emt 0:00:00]} d5 {[%emt 0:00:00]} 2. c4 {[%emt 0:00:00]} e6 {[%emt 0:00:18]} 3. g3 {[%emt 0:00:00]} c5 {[%emt 0:01:16]} 4. cxd5 {[%emt 0:00:17]} exd5 {[%emt 0:00:26]} 5. d4 {[%emt 0:00:11]} Nc6 {[%emt 0:00:32]} 6. Bg2 {[%emt 0:00:10]} Nf6 {[%emt 0:00:23]} 7. O-O {[%emt 0:00:08]} Be7 {[%emt 0:00:40]} 8. dxc5 {[%emt 0:00:07]} Bxc5 {[%emt 0:01:14]} 9. Qc2 {[%emt 0:00:10]} Bb6 {[%emt 0:06:56]} 10. Nc3 {[%emt 0:05:12]} h6 {[%emt 0:11:10]} 11. Na4 {[%emt 0:04:20]} O-O {[%emt 0:05:00]} 12. Rd1 {[%emt 0:04:00]} Bg4 {[%emt 0:12:24]} 13. Nxb6 {[%emt 0:10:45]} Qxb6 {[%emt 0:00:08]} 14. Be3 {[%emt 0:00:12]} Qa6 {[%emt 0:02:21]} 15. b3 {[%emt 0:11:53]} Rac8 {[%emt 0:12:41]} 16. Qb2 {[%emt 0:04:18]} Nb4 {[%emt 0:12:40]} 17. Nd4 {[%emt 0:06:22]} Nc6 {[%emt 0:08:23]} 18. Bf1 {[%emt 0:01:51]} Rfe8 {[%emt 0:01:06]} 19. Rac1 {[%emt 0:13:03]} Ne4 {[%emt 0:11:31]} 20. Nxc6 {[%emt 0:04:38]} *